bitfinex-derivatives/quotes_BNBF0:USTF0_20250111
["timestamp","ask_amount","ask_price","bid_price","bid_amount"]
[1736637488749,0.28689053,697.13,695.69,0.28748436]
[1736637488750,1.06716855,697.08,695.69,0.28748436]
[1736637489550,1.06716855,697.07,695.69,0.28748436]
[1736637490757,1.06716855,697.09,695.69,0.28748436]
[1736637491657,0.28689053,697.13,695.69,0.28748436]
[1736637502562,1.06716855,697.11,695.69,0.28748436]
[1736637503462,1.06716855,697.1,695.69,0.28748436]
[1736637504962,0.28689053,697.13,695.69,0.28748436]
[1736637504963,1.06716855,697.09,695.69,0.28748436]
[1736637505964,0.26381753,697.08,695.69,0.28748436]
[1736637506865,1.06716855,697.01,695.69,0.28748436]
[1736637510465,1.06716855,697.0,695.69,0.28748436]
[1736637512572,1.06716855,697.03,695.69,0.28748436]
[1736637513572,1.06716855,697.02,695.69,0.28748436]
[1736637514278,1.06716855,697.01,695.69,0.28748436]
[1736637515171,0.28689053,697.13,695.69,0.28748436]
[1736637515172,1.06716855,697.07,695.69,0.28748436]
[1736637516276,1.06716855,697.05,695.69,0.28748436]
[1736637517777,1.06716855,697.04,695.69,0.28748436]
[1736637519782,1.06716855,697.03,695.69,0.28748436]
[1736637520582,0.28689053,697.13,695.69,0.28748436]
[1736637520583,1.06716855,697.04,695.69,0.28748436]
[1736637521678,1.06716855,697.02,695.69,0.28748436]
[1736637522280,1.06716855,697.01,695.69,0.28748436]
[1736637522976,0.28689053,697.13,695.69,0.28748436]
[1736637531288,1.06716855,697.42,695.69,0.28748436]
[1736637531486,0.26374248,697.41,695.69,0.28748436]
[1736637531882,1.06716855,697.29,695.69,0.28748436]
[1736637532589,1.06716855,697.28,695.69,0.28748436]
[1736637533687,2.5662424,697.52,695.69,0.28748436]
[1736637533688,1.06716855,697.31,695.69,0.28748436]
[1736637534886,1.06716855,697.34,695.69,0.28748436]
[1736637536185,1.06716855,697.4,695.69,0.28748436]
[1736637537189,1.06716855,697.44,695.69,0.28748436]
[1736637538189,1.06716855,697.46,695.69,0.28748436]
[1736637538389,0.26370355,697.45,695.69,0.28748436]
[1736637538884,0.26370694,697.44,695.69,0.28748436]
[1736637539088,1.4986865,697.67,695.69,0.28748436]
[1736637539089,1.06716855,697.49,695.69,0.28748436]
[1736637539389,0.26370694,697.48,695.69,0.28748436]
[1736637540287,1.33087549,697.48,695.69,0.28748436]
[1736637540488,0.26370694,697.47,695.69,0.28748436]
[1736637540691,0.26371212,697.46,695.69,0.28748436]
[1736637540990,0.26371212,697.45,695.69,0.28748436]
[1736637541186,1.06716855,697.48,695.69,0.28748436]
[1736637541187,0.26371212,697.44,695.69,0.28748436]
[1736637541384,0.26371212,697.43,695.69,0.28748436]
[1736637541587,0.26371212,697.42,695.69,0.28748436]
[1736637541787,0.26371212,697.41,695.69,0.28748436]
[1736637541992,1.06716855,697.48,695.69,0.28748436]
[1736637542191,1.4986865,697.67,695.69,0.28748436]
[1736637542192,1.33087939,697.47,695.69,0.28748436]
[1736637542491,0.26371084,697.46,695.69,0.28748436]
[1736637542791,0.26371377,697.45,695.69,0.28748436]
[1736637542989,0.26371377,697.44,695.69,0.28748436]
[1736637543186,0.26371377,697.43,695.69,0.28748436]
[1736637543387,0.26371377,697.42,695.69,0.28748436]
[1736637543590,0.26371377,697.41,695.69,0.28748436]
[1736637543789,0.26371377,697.4,695.69,0.28748436]
[1736637543988,1.4986865,697.67,695.69,0.28748436]
[1736637543989,0.26371377,697.39,695.69,0.28748436]
[1736637544189,0.26371377,697.38,695.69,0.28748436]
[1736637544390,0.26371377,697.37,695.69,0.28748436]
[1736637544691,0.26371377,697.36,695.69,0.28748436]
[1736637544892,0.26371377,697.35,695.69,0.28748436]
[1736637545092,1.06716855,697.43,695.69,0.28748436]
[1736637545286,0.26374217,697.42,695.69,0.28748436]
[1736637546092,1.06716855,697.34,695.69,0.28748436]
[1736637546889,1.06716855,697.63,695.69,0.28748436]
[1736637546890,1.06716855,697.45,695.69,0.28748436]
[1736637547192,0.26374195,697.44,695.69,0.28748436]
[1736637548092,0.26374481,697.43,695.69,0.28748436]
[1736637548292,0.26374481,697.42,695.69,0.28748436]
[1736637548594,0.26374481,697.41,695.69,0.28748436]
[1736637548787,1.06716855,697.45,695.69,0.28748436]
[1736637548788,0.26374481,697.4,695.69,0.28748436]
[1736637549093,0.26374481,697.39,695.69,0.28748436]
[1736637549297,0.26374255,697.38,695.69,0.28748436]
[1736637549591,1.06716855,697.44,695.69,0.28748436]
[1736637549786,0.26374255,697.43,695.69,0.28748436]
[1736637550189,1.3309111,697.43,695.69,0.28748436]
[1736637550389,0.26374255,697.42,695.69,0.28748436]
[1736637550693,1.06716855,697.43,695.69,0.28748436]
[1736637550893,0.26374344,697.42,695.69,0.28748436]
[1736637551089,1.33091199,697.42,695.69,0.28748436]
[1736637551294,0.26374344,697.41,695.69,0.28748436]
[1736637552598,1.33091199,697.41,695.69,0.28748436]
[1736637552796,0.26372809,697.4,695.69,0.28748436]
[1736637553491,1.06716855,697.41,695.69,0.28748436]
[1736637553794,1.06716855,697.42,695.69,0.28748436]
[1736637553990,0.26372786,697.41,695.69,0.28748436]
[1736637554196,1.06716855,697.42,695.69,0.28748436]
[1736637557193,1.06716855,697.39,695.69,0.28748436]
[1736637558198,1.06716855,697.45,695.69,0.28748436]
[1736637560102,1.06716855,697.48,695.69,0.28748436]
[1736637561101,1.3539069,697.5,695.69,0.28748436]
[1736637562000,1.06716855,697.49,695.69,0.28748436]
[1736637564106,1.06716855,697.47,695.69,0.28748436]
[1736637565305,1.06716855,697.46,695.69,0.28748436]
[1736637566506,1.06716855,697.43,695.7,1.28667887]
[1736637566902,1.06716855,697.43,695.72,0.28747197]
[1736637567615,1.06716855,697.4,695.76,1.28667887]
[1736637567807,1.06716855,697.4,695.78,0.28744718]
[1736637568510,1.06716855,697.39,695.78,1.57412605]
[1736637569405,1.06716855,697.38,695.78,0.28744718]
[1736637571514,1.06716855,697.37,695.78,0.28744718]
[1736637572413,1.06716855,697.38,695.78,0.28744718]
[1736637574216,1.06716855,697.37,695.78,0.28744718]
[1736637574817,1.06716855,697.38,695.78,0.28744718]
[1736637575616,0.28673835,697.5,695.78,0.28744718]
[1736637575617,1.33086265,697.37,695.78,1.57412605]
[1736637575817,0.2636941,697.36,695.78,4.63143376]
[1736637576017,0.2636941,697.36,695.79,2.73645513]
[1736637576212,0.2636941,697.36,695.81,0.28743478]
[1736637576616,1.06716855,697.31,695.93,1.28667887]
[1736637576816,1.06716855,697.31,695.95,0.28737696]
[1736637578717,1.06716855,697.3,695.95,0.28737696]
[1736637579819,1.06716855,697.31,695.95,0.28737696]
[1736637583723,1.06716855,697.31,695.95,1.57405583]
[1736637584625,1.06716855,697.3,695.96,1.28667887]
[1736637584817,1.06716855,697.3,695.98,0.28736457]
[1736637585626,1.06716855,697.37,695.98,0.28736457]
[1736637586526,1.06716855,697.36,695.98,0.28736457]
[1736637588626,0.28673835,697.5,695.98,0.28736457]
[1736637588627,1.06716855,697.37,695.98,0.28736457]
[1736637590523,1.06716855,697.35,695.98,0.28736457]
[1736637591429,1.06716855,697.33,695.98,0.28736457]
[1736637592026,1.06716855,697.31,695.98,0.28736457]
[1736637593128,1.06716855,697.32,695.98,0.28736457]
[1736637594833,1.06716855,697.27,696.0,1.28667887]
[1736637595131,1.06716855,697.27,696.02,0.28734806]
[1736637595832,0.28673835,697.5,696.02,0.28734806]
[1736637595833,1.06716855,697.25,696.02,0.28734806]
[1736637596635,1.06716855,697.26,696.02,0.28734806]
[1736637598535,1.06716855,697.27,696.02,0.28734806]
[1736637599734,1.06716855,697.3,696.02,1.57402693]
[1736637601238,1.06716855,697.32,696.02,0.28734806]
[1736637602233,1.06716855,697.31,696.02,0.28734806]
[1736637603038,1.06716855,697.27,696.02,0.28734806]
[1736637603938,1.06716855,697.31,696.02,0.28734806]
[1736637605539,1.06716855,697.31,696.02,1.20766864]
[1736637605740,1.06716855,697.32,696.02,3.02251987]
[1736637608234,1.06716855,697.32,696.02,0.28734806]
[1736637610434,1.06716855,697.41,696.02,0.28734806]
[1736637611236,1.06716855,697.37,696.02,0.28734806]
[1736637612541,1.06716855,697.38,696.02,0.28734806]
[1736637613944,1.06716855,697.39,696.02,0.28734806]
[1736637615344,1.06716855,697.38,696.02,0.28734806]
[1736637616045,1.06716855,697.36,696.02,0.28734806]
[1736637616943,1.06716855,697.35,696.02,0.28734806]
[1736637620047,1.06716855,697.33,696.02,0.28734806]
[1736637620847,0.28673835,697.5,696.02,0.28734806]
[1736637620848,1.06716855,697.34,696.02,0.28734806]
[1736637623450,0.28673835,697.5,696.02,0.28734806]
[1736637623451,1.06716855,697.33,696.02,0.28734806]
[1736637625748,1.06716855,697.35,696.02,0.28734806]
[1736637626546,1.06716855,697.34,696.02,0.28734806]
[1736637628357,1.06716855,697.27,696.07,1.28667887]
[1736637628549,1.06716855,697.27,696.08,0.28732329]
[1736637629256,1.06716855,697.28,696.08,1.57400216]
[1736637629853,1.06716855,697.27,696.1,1.28667887]
[1736637630059,1.06716855,697.27,696.11,0.28731091]
[1736637630958,1.06716855,697.3,696.12,1.28667887]
[1736637631159,1.06716855,697.3,696.13,0.28730265]
[1736637631858,1.06716855,697.31,696.13,1.57398152]
[1736637633058,1.06716855,697.37,696.16,1.28667887]
[1736637633355,1.06716855,697.37,696.17,0.28728615]
[1736637634857,1.06716855,697.38,696.17,0.28728615]
[1736637635760,0.28673835,697.5,696.17,0.28728615]
[1736637635761,1.06716855,697.42,696.17,0.28728615]
[1736637636959,1.06716855,697.57,696.17,0.28728615]
[1736637637765,0.8844335,697.92,696.17,0.28728615]
[1736637637766,1.06716855,697.6,696.17,0.28728615]
[1736637640469,1.06716855,697.61,696.17,0.28728615]
[1736637640969,1.06716855,697.63,696.17,0.28728615]
[1736637642169,1.06716855,697.65,696.17,0.28728615]
[1736637642966,1.06716855,697.66,696.17,0.28728615]
[1736637643771,1.06716855,697.67,696.17,0.28728615]
[1736637644471,1.06716855,697.66,696.17,0.28728615]
[1736637645371,1.06716855,697.7,696.17,0.28728615]
[1736637645871,0.26361544,697.69,696.17,0.28728615]
[1736637646465,1.33078399,697.69,696.17,0.28728615]
[1736637646672,0.26361544,697.68,696.17,0.28728615]
[1736637647571,1.06716855,697.67,696.17,0.28728615]
[1736637647770,0.26360912,697.66,696.17,0.28728615]
[1736637647971,1.06716855,697.67,696.17,0.28728615]
[1736637648268,0.26361003,697.66,696.17,0.28728615]
[1736637648473,1.06716855,697.68,696.17,0.28728615]
[1736637648669,0.2636134,697.67,696.17,0.28728615]
[1736637649172,1.33078195,697.67,696.17,0.28728615]
[1736637649374,0.2636134,697.66,696.17,0.28728615]
[1736637649775,1.06716855,697.67,696.17,0.28728615]
[1736637649976,0.26361881,697.66,696.17,0.28728615]
[1736637651080,0.2636166,697.65,696.17,0.28728615]
[1736637651274,1.06716855,697.67,696.17,0.28728615]
[1736637651275,0.2636166,697.66,696.17,0.28728615]
[1736637651577,0.2636166,697.65,696.17,0.28728615]
[1736637651774,1.06716855,697.67,696.17,0.28728615]
[1736637652074,0.26361671,697.66,696.17,0.28728615]
[1736637653880,1.06716855,697.67,696.17,0.28728615]
[1736637654080,0.26361331,697.66,696.17,0.28728615]
[1736637654275,1.33078186,697.66,696.17,0.28728615]
[1736637654582,0.26361331,697.65,696.17,0.28728615]
[1736637655582,1.06716855,697.6,696.17,0.28728615]
[1736637655881,0.26361331,697.59,696.17,0.28728615]
[1736637656281,1.06716855,697.58,696.17,0.28728615]
[1736637656481,0.26361331,697.57,696.17,0.28728615]
[1736637657376,1.33078186,697.57,696.17,0.28728615]
[1736637657579,0.26361331,697.56,696.17,0.28728615]
[1736637658383,1.06716855,697.58,696.17,0.28728615]
[1736637658583,0.26361147,697.57,696.17,0.28728615]
[1736637659284,1.06716855,697.58,696.17,0.28728615]
[1736637659484,0.26361231,697.57,696.17,0.28728615]
[1736637659681,1.06716855,697.58,696.17,0.28728615]
[1736637661585,0.26361336,697.57,696.17,0.28728615]
[1736637661987,1.06716855,697.56,696.17,0.28728615]
[1736637662786,0.88314486,697.81,696.17,0.28728615]
[1736637662787,1.06716855,697.55,696.17,0.28728615]
[1736637663884,1.06716855,697.54,696.17,0.28728615]
[1736637664989,1.06716855,697.51,696.17,1.57396502]
[1736637666189,1.06716855,697.5,696.19,1.28667887]
[1736637666389,1.06716855,697.5,696.2,0.28727377]
[1736637667187,1.06716855,697.51,696.2,0.28727377]
[1736637668192,1.06716855,697.5,696.2,0.28727377]
[1736637669586,1.06716855,697.47,696.2,0.28727377]
[1736637670592,1.06716855,697.45,696.2,0.28727377]
[1736637671392,1.06716855,697.44,696.2,0.28727377]
[1736637672386,0.88367369,697.71,696.2,0.28727377]
[1736637672387,1.06716855,697.43,696.2,0.28727377]
[1736637673493,0.26367786,697.42,696.2,0.28727377]
[1736637674293,1.06716855,697.4,696.2,0.28727377]
[1736637674493,0.26367786,697.39,696.2,0.28727377]
[1736637674993,0.26368113,697.38,696.2,0.28727377]
[1736637675293,1.06716855,697.4,696.2,0.28727377]
[1736637675594,0.26368087,697.39,696.2,0.28727377]
[1736637675785,1.06716855,697.41,696.2,0.28727377]
[1736637675990,0.26368371,697.4,696.2,0.28727377]
[1736637677692,0.26368709,697.39,696.2,0.28727377]
[1736637677890,0.26368709,697.38,696.2,0.28727377]
[1736637678089,0.26368709,697.37,696.2,0.28727377]
[1736637678290,1.06716855,697.41,696.2,0.28727377]
[1736637678490,0.26368827,697.4,696.2,0.28727377]
[1736637678894,0.26368835,697.39,696.2,0.28727377]
[1736637679095,0.26368835,697.38,696.2,0.28727377]
[1736637679298,1.06716855,697.42,696.2,0.28727377]
[1736637679592,0.26368666,697.41,696.2,0.28727377]
[1736637680496,0.26368769,697.4,696.2,0.28727377]
[1736637680696,0.26368769,697.39,696.2,0.28727377]
[1736637680891,0.26368769,697.38,696.2,0.28727377]
[1736637681094,0.26368769,697.37,696.2,0.28727377]
[1736637681294,0.26368769,697.36,696.2,0.28727377]
[1736637681495,0.26368769,697.35,696.2,0.28727377]
[1736637681692,1.06716855,697.41,696.2,0.28727377]
[1736637681897,0.26369141,697.4,696.2,0.28727377]
[1736637682496,0.26369141,697.39,696.2,0.28727377]
[1736637682796,0.26368359,697.38,696.2,0.28727377]
[1736637682993,1.06716855,697.42,696.2,0.28727377]
[1736637683197,0.26368359,697.41,696.2,0.28727377]
[1736637683399,0.26368359,697.4,696.2,0.28727377]
[1736637683597,0.26368359,697.39,696.2,0.28727377]
[1736637683793,0.26368402,697.38,696.2,0.28727377]
[1736637684094,1.06716855,697.44,696.2,0.28727377]
[1736637684291,0.26368384,697.43,696.2,0.28727377]
[1736637686597,0.26368384,697.42,696.2,0.28727377]
[1736637686798,0.26368384,697.41,696.2,0.28727377]
[1736637686998,0.26368384,697.4,696.2,0.28727377]
[1736637687194,0.26368384,697.39,696.2,0.28727377]
[1736637687396,1.06716855,697.45,696.2,0.28727377]
[1736637687601,0.26367539,697.44,696.2,0.28727377]
[1736637688102,0.26367539,697.43,696.2,0.28727377]
[1736637688302,0.26367539,697.42,696.2,0.28727377]
[1736637688503,1.06716855,697.46,696.2,0.28727377]
[1736637688703,0.26366737,697.45,696.2,0.28727377]
[1736637689904,0.26366737,697.44,696.2,0.28727377]
[1736637690103,0.26366737,697.43,696.2,0.28727377]
[1736637690303,1.06716855,697.48,696.2,0.28727377]
[1736637690504,0.26365983,697.47,696.2,0.28727377]
[1736637690905,0.26365983,697.46,696.2,0.28727377]
[1736637691105,0.26365983,697.45,696.2,0.28727377]
[1736637691300,0.26365983,697.44,696.2,0.28727377]
[1736637691503,0.26365983,697.43,696.2,0.28727377]
[1736637691701,1.06716855,697.48,696.2,0.28727377]
[1736637691904,0.26366171,697.47,696.2,0.28727377]
[1736637692808,1.33083026,697.47,696.2,0.28727377]
[1736637693008,0.26366171,697.46,696.2,0.28727377]
[1736637694009,0.26366103,697.45,696.2,0.28727377]
[1736637694307,0.26366103,697.44,696.2,0.28727377]
[1736637694606,0.26366103,697.43,696.2,0.28727377]
[1736637694807,1.06716855,697.46,696.2,0.28727377]
[1736637695009,0.26366032,697.45,696.2,0.28727377]
[1736637695405,1.33082887,697.45,696.2,0.28727377]
[1736637695607,0.26366032,697.44,696.2,0.28727377]
[1736637696308,1.33082887,697.44,696.2,0.28727377]
[1736637696509,1.06716855,697.44,696.2,0.28727377]
[1736637696807,0.26366607,697.43,696.2,0.28727377]
[1736637697109,1.06716855,697.71,696.2,0.28727377]
[1736637697110,1.06716855,697.41,696.2,0.28727377]
[1736637698211,1.06716855,697.42,696.2,0.28727377]
[1736637698811,1.06716855,697.39,696.2,0.28727377]
[1736637699916,1.06716855,697.57,696.2,0.28727377]
[1736637699917,1.06716855,697.37,696.2,0.28727377]
[1736637701215,1.06716855,697.35,696.2,0.28727377]
[1736637702216,0.28666437,697.68,696.2,0.28727377]
[1736637702217,1.06716855,697.34,696.2,0.28727377]
[1736637704421,1.06716855,697.33,696.2,0.28727377]
[1736637705519,1.06716855,697.34,696.2,0.28727377]
[1736637713319,1.06716855,697.43,696.2,0.28727377]
[1736637714324,1.06716855,697.44,696.2,0.28727377]
[1736637715228,0.28666437,697.68,696.2,0.28727377]
[1736637715229,1.06716855,697.45,696.2,0.28727377]
[1736637716228,1.06716855,697.42,696.2,0.28727377]
[1736637717121,1.06716855,697.43,696.2,0.28727377]
[1736637718028,1.06716855,697.41,696.2,0.28727377]
[1736637718934,1.06716855,697.39,696.2,0.28727377]
[1736637720028,1.06716855,697.37,696.2,0.28727377]
[1736637720930,1.06716855,697.36,696.2,0.28727377]
[1736637722431,1.06716855,697.37,696.2,0.28727377]
[1736637723734,1.06716855,697.32,696.2,0.28727377]
[1736637724531,1.06716855,697.31,696.2,0.28727377]
[1736637725432,1.06716855,697.32,696.2,0.28727377]
[1736637726328,1.06716855,697.31,696.2,0.28727377]
[1736637727131,1.06716855,697.32,696.2,0.28727377]
[1736637728335,1.06716855,697.34,696.2,0.28727377]
[1736637729037,1.06716855,697.32,696.2,0.28727377]
[1736637738137,0.88409835,697.67,696.2,0.28727377]
[1736637738138,1.06716855,697.34,696.2,0.28727377]
[1736637741150,1.06716855,697.35,696.2,0.28727377]
[1736637742244,0.88409835,697.67,696.2,0.28727377]
[1736637742245,1.06716855,697.33,696.2,0.28727377]
[1736637743955,1.06716855,697.34,696.2,0.28727377]
[1736637744749,1.06716855,697.33,696.2,0.28727377]
[1736637745455,1.06716855,697.34,696.2,0.28727377]
[1736637748951,1.06716855,697.41,696.2,0.28727377]
[1736637750158,1.06716855,697.39,696.2,0.28727377]
[1736637751658,1.06716855,697.38,696.2,0.28727377]
[1736637754264,1.06716855,697.46,696.2,0.28727377]
[1736637757865,1.06716855,697.47,696.2,0.28727377]
[1736637759663,1.06716855,697.41,696.2,0.28727377]
[1736637760965,1.06716855,697.39,696.2,0.28727377]
[1736637761966,1.06716855,697.46,696.2,0.28727377]
[1736637763070,1.06716855,697.41,696.2,0.28727377]
[1736637763969,1.06716855,697.42,696.2,0.28727377]
[1736637764870,1.06716855,697.45,696.2,0.28727377]
[1736637765870,1.06716855,697.46,696.2,0.28727377]
[1736637766769,1.06716855,697.47,696.2,0.28727377]
[1736637767971,1.06716855,697.5,696.2,0.28727377]
[1736637768167,1.3539069,697.5,696.2,0.28727377]
[1736637769065,1.06716855,697.48,696.2,0.28727377]
[1736637769672,1.3539069,697.5,696.2,0.28727377]
[1736637770975,0.26370017,697.49,696.2,0.28727377]
[1736637771870,1.06716855,697.38,696.2,0.28727377]
[1736637772971,0.28673835,697.5,696.2,0.28727377]
[1736637782977,0.26366858,697.49,696.2,0.28727377]
[1736637783183,1.06716855,697.47,696.2,0.28727377]
[1736637783381,0.26366736,697.46,696.2,0.28727377]
[1736637784283,1.06716855,697.41,696.2,0.28727377]
[1736637785684,1.06716855,697.44,696.2,0.28727377]
[1736637786783,1.06716855,697.45,696.2,0.28727377]
[1736637788079,1.06716855,697.46,696.2,0.28727377]
[1736637788687,0.26366568,697.45,696.2,0.28727377]
[1736637788884,1.33083423,697.45,696.2,0.28727377]
[1736637789089,1.06716855,697.45,696.2,0.28727377]
[1736637789285,0.26366883,697.44,696.2,0.28727377]
[1736637789591,1.06716855,697.45,696.2,0.28727377]
[1736637789786,0.26367321,697.44,696.2,0.28727377]
[1736637789988,1.06716855,697.41,696.2,0.28727377]
[1736637791990,1.06716855,697.4,696.2,0.28727377]
[1736637793184,1.06716855,697.41,696.2,0.28727377]
[1736637795095,0.28673835,697.5,696.2,0.28727377]
[1736637804096,0.26364282,697.49,696.2,0.28727377]
[1736637804595,1.3539069,697.5,696.2,0.28727377]
[1736637804799,0.26364244,697.49,696.2,0.28727377]
[1736637805801,1.06716855,697.44,696.2,0.28727377]
[1736637806696,1.06716855,697.43,696.2,0.28727377]
[1736637808105,1.06716855,697.44,696.2,0.28727377]
[1736637809099,0.28673835,697.5,696.2,0.28727377]
[1736637810100,1.28060227,698.16,696.2,0.28727377]
[1736637810101,1.06716855,697.67,696.2,0.28727377]
[1736637811005,1.06716855,697.7,696.2,0.28727377]
[1736637812012,1.06716855,697.73,696.2,0.28727377]
[1736637812805,1.06716855,697.74,696.2,0.28727377]
[1736637814511,0.26357962,697.73,696.2,0.28727377]
[1736637814713,0.26357962,697.72,696.2,0.28727377]
[1736637815013,0.26357962,697.71,696.2,0.28727377]
[1736637815208,0.26357962,697.7,696.2,0.28727377]
[1736637815408,1.06716855,697.79,696.2,0.28727377]
[1736637815609,0.26357618,697.78,696.2,0.28727377]
[1736637815812,1.06716855,697.72,696.2,0.28727377]
[1736637816007,0.26357618,697.71,696.2,0.28727377]
[1736637817113,0.26357655,697.7,696.2,0.28727377]
[1736637817317,1.06716855,697.74,696.2,0.28727377]
[1736637817615,0.26357538,697.73,696.2,0.28727377]
[1736637818011,0.26357538,697.72,696.2,0.28727377]
[1736637818315,0.26357345,697.71,696.2,0.28727377]
[1736637818510,0.26357345,697.7,696.2,0.28727377]
[1736637818717,0.26357345,697.69,696.2,0.28727377]
[1736637819014,0.26357345,697.68,696.2,0.28727377]
[1736637819217,0.26357345,697.67,696.2,0.28727377]
[1736637819418,1.06716855,697.73,696.2,0.28727377]
[1736637819615,0.263581,697.72,696.2,0.28727377]
[1736637820410,0.263581,697.71,696.2,0.28727377]
[1736637820616,0.263581,697.7,696.2,0.28727377]
[1736637820816,0.263581,697.73,696.2,0.28727377]
[1736637821018,0.26357745,697.72,696.2,0.28727377]
[1736637821216,0.26357745,697.71,696.2,0.28727377]
[1736637821515,0.26357745,697.7,696.2,0.28727377]
[1736637821713,0.26357895,697.69,696.2,0.28727377]
[1736637821916,0.26357895,697.68,696.2,0.28727377]
[1736637822215,0.26357895,697.67,696.2,0.28727377]
[1736637822411,0.26357895,697.66,696.2,0.28727377]
[1736637822619,0.26357895,697.65,696.2,0.28727377]
[1736637822811,1.06716855,697.74,696.2,0.28727377]
[1736637823124,0.26358942,697.73,696.2,0.28727377]
[1736637823411,1.06716855,697.71,696.2,0.28727377]
[1736637823610,0.26358942,697.7,696.2,0.28727377]
[1736637823816,0.26358484,697.69,696.2,0.28727377]
[1736637824015,0.26358484,697.68,696.2,0.28727377]
[1736637824316,0.26358484,697.67,696.2,0.28727377]
[1736637824517,0.26358484,697.66,696.2,0.28727377]
[1736637824712,0.26358484,697.65,696.2,0.28727377]
[1736637824917,0.26358484,697.64,696.2,0.28727377]
[1736637825117,0.26358484,697.63,696.2,0.28727377]
[1736637825319,1.06716855,697.69,696.2,0.28727377]
[1736637825520,0.26358793,697.68,696.2,0.28727377]
[1736637826819,1.33075648,697.68,696.2,0.28727377]
[1736637827021,0.26358793,697.67,696.2,0.28727377]
[1736637828319,1.33075648,697.67,696.2,0.28727377]
[1736637828513,0.26358793,697.66,696.2,0.28727377]
[1736637828714,1.06716855,697.67,696.2,0.28727377]
[1736637829115,1.06716855,697.68,696.2,1.57395264]
[1736637829816,1.06716855,697.71,696.23,1.28667887]
[1736637830019,0.26356047,697.7,696.23,1.28667887]
[1736637831116,1.06716855,697.72,696.23,1.28667887]
[1736637831316,0.26356454,697.71,696.23,1.28667887]
[1736637831723,0.26356454,697.71,696.25,0.28725314]
[1736637832023,0.26356229,697.7,696.25,0.28725314]
[1736637832321,0.26356266,697.69,696.25,0.28725314]
[1736637832623,1.06716855,697.73,696.25,0.28725314]
[1736637832822,0.2635597,697.72,696.25,0.28725314]
[1736637833827,0.2635597,697.72,696.25,1.20664726]
[1736637834020,0.2635597,697.72,696.25,3.02318296]
[1736637834321,0.2635597,697.72,696.25,4.30986183]
[1736637834522,1.06716855,697.74,696.25,4.30986183]
[1736637834724,0.26355867,697.73,696.25,4.30986183]
[1736637835124,1.33072722,697.73,696.26,3.04990329]
[1736637835321,0.26355867,697.72,696.28,0.28724076]
[1736637837125,1.33072722,697.72,696.28,0.28724076]
[1736637837324,0.26355744,697.71,696.28,0.28724076]
[1736637837725,1.06716855,697.72,696.28,0.28724076]
[1736637837926,0.26355254,697.71,696.28,0.28724076]
[1736637838126,1.33072109,697.71,696.28,3.02317058]
[1736637838326,1.06716855,697.71,696.28,3.02317058]
[1736637839326,1.06716855,697.71,696.28,6.07307387]
[1736637839528,1.06716855,697.71,696.29,2.73592982]
[1736637840031,0.28656168,697.93,696.29,2.73592982]
[1736637840032,1.06716855,697.7,696.29,2.73592982]
[1736637840628,1.06716855,697.7,696.29,5.78583311]
[1736637840834,1.06716855,697.7,696.3,2.73592982]
[1736637841334,1.06716855,697.68,696.3,4.02260869]
[1736637841731,1.06716855,697.68,696.31,3.04990329]
[1736637841927,1.06716855,697.68,696.31,5.78583311]
[1736637842133,1.06716855,697.68,696.32,4.02260869]
[1736637842332,1.06716855,697.67,696.32,4.02260869]
[1736637843034,1.06716855,697.65,696.34,1.28667887]
[1736637843536,1.06716855,697.65,696.34,4.02260869]
[1736637844033,1.06716855,697.6,696.34,2.73592982]
[1736637844738,1.06716855,697.62,696.35,1.28667887]
[1736637844935,1.06716855,697.62,696.35,4.02260869]
[1736637845436,0.88286976,697.93,696.35,4.02260869]
[1736637845437,1.06716855,697.61,696.35,2.73592982]
[1736637846135,1.06716855,697.61,696.35,5.78583311]
[1736637846336,1.06716855,697.61,696.36,1.8165357]
[1736637847237,1.06716855,697.65,696.36,1.8165357]
[1736637847731,1.06716855,697.65,696.31,1.8165357]
[1736637847938,1.06716855,697.65,696.3,1.28667887]
[1736637848337,1.06716855,697.66,696.31,1.28667887]
[1736637849133,1.06716855,697.68,696.31,1.28667887]
[1736637850241,1.06716855,698.06,696.05,4.33658216]
[1736637850439,1.06716855,698.06,696.06,2.72524829]
[1736637851442,1.06716855,698.1,696.15,1.28667887]
[1736637852142,1.06716855,698.13,696.12,1.28667887]
[1736637853241,1.06716855,698.16,696.25,1.28667887]
[1736637853443,0.26344411,698.15,696.25,1.28667887]
[1736637854139,0.26344411,698.15,696.22,1.28667887]
[1736637854342,0.26344411,698.14,696.22,1.28667887]
[1736637854544,1.06716855,698.19,696.22,1.28667887]
[1736637854738,0.26344347,698.18,696.22,1.28667887]
[1736637854941,0.26344347,698.18,696.19,1.28667887]
[1736637855143,0.26344347,698.17,696.19,1.28667887]
[1736637855342,1.06716855,698.22,696.19,1.28667887]
[1736637855547,0.26344803,698.21,696.19,1.28667887]
[1736637855740,0.26344803,698.21,696.16,1.28667887]
[1736637855941,0.26344803,698.2,696.16,1.28667887]
[1736637856147,0.26344803,698.19,696.16,1.28667887]
[1736637856442,0.26344803,698.18,696.16,1.28667887]
[1736637856647,0.26344803,698.17,696.16,1.28667887]
[1736637856841,0.26344803,698.16,696.16,1.28667887]
[1736637857041,0.26344803,698.15,696.14,4.01192716]
[1736637857247,0.26344803,698.14,696.14,4.01192716]
[1736637857446,0.26344803,698.13,696.14,4.01192716]